[Event "Early-Titled-Tuesday-Blitz-February-27-2024"]
[Site "Chess.com"]
[Date "2024.02.27"]
[Round "11"]
[White "ketster"]
[Black "claudyna16"]
[Result "1-0"]
[WhiteElo "2594"]
[BlackElo "2473"]
[TimeControl "180+1"]
[EndTime "10:08:46 PST"]
[Termination "ketster won by checkmate"]

1. d4 {[%clk 0:02:52.5]} 1... Nf6 {[%clk 0:02:58.5]} 2. c4 {[%clk 0:02:53]} 2...
g6 {[%clk 0:02:58.5]} 3. Nc3 {[%clk 0:02:53.1]} 3... Bg7 {[%clk 0:02:58.6]} 4.
e4 {[%clk 0:02:53.5]} 4... O-O {[%clk 0:02:58.7]} 5. Nge2 {[%clk 0:02:54.4]}
5... d6 {[%clk 0:02:58]} 6. Ng3 {[%clk 0:02:54.7]} 6... c5 {[%clk 0:02:58.1]} 7.
d5 {[%clk 0:02:54.8]} 7... a6 {[%clk 0:02:58.3]} 8. a4 {[%clk 0:02:54.4]} 8...
h5 {[%clk 0:02:51.5]} 9. Be2 {[%clk 0:02:54.6]} 9... h4 {[%clk 0:02:51.3]} 10.
Nf1 {[%clk 0:02:54.9]} 10... Qa5 {[%clk 0:02:50.1]} 11. Bd2 {[%clk 0:02:51.8]}
11... h3 {[%clk 0:02:49.8]} 12. g4 {[%clk 0:02:46.9]} 12... Nbd7 {[%clk
0:02:23]} 13. Ng3 {[%clk 0:02:38.1]} 13... Ne5 {[%clk 0:02:22.1]} 14. g5 {[%clk
0:02:34.1]} 14... Nh7 {[%clk 0:02:19.3]} 15. f4 {[%clk 0:02:32.5]} 15... Nd7
{[%clk 0:02:10.5]} 16. O-O {[%clk 0:02:17.9]} 16... e6 {[%clk 0:02:03.5]} 17.
Nb5 {[%clk 0:02:04.9]} 17... Qb6 {[%clk 0:01:56.8]} 18. a5 {[%clk 0:02:03.6]}
18... Qd8 {[%clk 0:01:56.8]} 19. Nxd6 {[%clk 0:02:02.6]} 19... exd5 {[%clk
0:01:56]} 20. cxd5 {[%clk 0:01:59.7]} 20... b5 {[%clk 0:01:49]} 21. axb6 {[%clk
0:01:49.3]} 21... Nxb6 {[%clk 0:01:41.8]} 22. Nxc8 {[%clk 0:01:44.1]} 22... Qxc8
{[%clk 0:01:42.7]} 23. Bg4 {[%clk 0:01:41.2]} 23... Qb7 {[%clk 0:01:28.1]} 24.
Bc3 {[%clk 0:01:38.5]} 24... Nc4 {[%clk 0:01:24.3]} 25. Qe2 {[%clk 0:01:32.9]}
25... Qb5 {[%clk 0:01:15.6]} 26. Bxh3 {[%clk 0:01:21.7]} 26... Nxb2 {[%clk
0:01:07.8]} 27. Bxg7 {[%clk 0:01:13.4]} 27... Kxg7 {[%clk 0:01:05.8]} 28. Rfb1
{[%clk 0:00:52]} 28... Qxe2 {[%clk 0:01:04.1]} 29. Nxe2 {[%clk 0:00:52.9]} 29...
Nd3 {[%clk 0:00:56.1]} 30. Rb6 {[%clk 0:00:44.3]} 30... Nb4 {[%clk 0:00:48.8]}
31. d6 {[%clk 0:00:35.5]} 31... Rfd8 {[%clk 0:00:46.1]} 32. e5 {[%clk
0:00:34.7]} 32... Nf8 {[%clk 0:00:46.3]} 33. Rb7 {[%clk 0:00:33]} 33... Kg8
{[%clk 0:00:44.9]} 34. Nc3 {[%clk 0:00:30.9]} 34... Rdb8 {[%clk 0:00:37.6]} 35.
Rc7 {[%clk 0:00:29]} 35... Nd3 {[%clk 0:00:33.5]} 36. Nd5 {[%clk 0:00:27.4]}
36... Rb2 {[%clk 0:00:22.3]} 37. d7 {[%clk 0:00:23.6]} 37... Rd8 {[%clk
0:00:20]} 38. Rc8 {[%clk 0:00:17.3]} 38... Rb8 {[%clk 0:00:19.8]} 39. Rxb8
{[%clk 0:00:15.6]} 39... Rxb8 {[%clk 0:00:19.9]} 40. Ne7+ {[%clk 0:00:16.2]}
40... Kg7 {[%clk 0:00:20.4]} 41. Nc6 {[%clk 0:00:17.1]} 41... Nxd7 {[%clk
0:00:18.8]} 42. Nxb8 {[%clk 0:00:13.5]} 42... Nxb8 {[%clk 0:00:19.7]} 43. Bf1
{[%clk 0:00:13.4]} 43... Nxf4 {[%clk 0:00:19.3]} 44. Bxa6 {[%clk 0:00:12.4]}
44... Nc6 {[%clk 0:00:18.1]} 45. Rc1 {[%clk 0:00:04.8]} 45... Nh3+ {[%clk
0:00:16.2]} 46. Kg2 {[%clk 0:00:04.7]} 46... Nxg5 {[%clk 0:00:16.8]} 47. Rxc5
{[%clk 0:00:04.1]} 47... Ne7 {[%clk 0:00:16.3]} 48. Bc4 {[%clk 0:00:03.8]} 48...
Ne4 {[%clk 0:00:15.5]} 49. Rc7 {[%clk 0:00:03.5]} 49... Nf5 {[%clk 0:00:15.8]}
50. Rxf7+ {[%clk 0:00:03.3]} 50... Kh6 {[%clk 0:00:16.4]} 51. Rc7 {[%clk
0:00:03.7]} 51... Kg5 {[%clk 0:00:16.2]} 52. Kf3 {[%clk 0:00:03.6]} 52... Nd2+
{[%clk 0:00:15.9]} 53. Ke2 {[%clk 0:00:03.6]} 53... Ne4 {[%clk 0:00:15.6]} 54.
e6 {[%clk 0:00:03.5]} 54... Kf6 {[%clk 0:00:15.8]} 55. Kd3 {[%clk 0:00:03]}
55... Ned6 {[%clk 0:00:15.9]} 56. Rd7 {[%clk 0:00:02.6]} 56... Nxc4 {[%clk
0:00:13.9]} 57. Kxc4 {[%clk 0:00:03.5]} 57... Kxe6 {[%clk 0:00:14.5]} 58. Rd3
{[%clk 0:00:03.5]} 58... Ke5 {[%clk 0:00:14.5]} 59. Rf3 {[%clk 0:00:03.7]} 59...
Ke4 {[%clk 0:00:14.6]} 60. Rf2 {[%clk 0:00:03.3]} 60... Ke3 {[%clk 0:00:14.7]}
61. Rg2 {[%clk 0:00:03.7]} 61... Kf3 {[%clk 0:00:11.6]} 62. Rxg6 {[%clk
0:00:03.3]} 62... Kf4 {[%clk 0:00:11.1]} 63. Rg8 {[%clk 0:00:03.2]} 63... Ne3+
{[%clk 0:00:11]} 64. Kd4 {[%clk 0:00:03.5]} 64... Nf5+ {[%clk 0:00:11]} 65. Kd3
{[%clk 0:00:03.8]} 65... Nh4 {[%clk 0:00:10.9]} 66. Ke2 {[%clk 0:00:03.9]} 66...
Nf5 {[%clk 0:00:10.6]} 67. Kf2 {[%clk 0:00:04.2]} 67... Nh6 {[%clk 0:00:08.9]}
68. Rf8+ {[%clk 0:00:04.1]} 68... Kg4 {[%clk 0:00:09.1]} 69. Kg2 {[%clk
0:00:04.6]} 69... Nf5 {[%clk 0:00:09.2]} 70. h3+ {[%clk 0:00:05.4]} 70... Kg5
{[%clk 0:00:09]} 71. Rg8+ {[%clk 0:00:06.1]} 71... Kh5 {[%clk 0:00:08.2]} 72.
Ra8 {[%clk 0:00:07]} 72... Nh4+ {[%clk 0:00:07.7]} 73. Kg3 {[%clk 0:00:07.6]}
73... Nf5+ {[%clk 0:00:08.2]} 74. Kf3 {[%clk 0:00:08.2]} 74... Nh4+ {[%clk
0:00:08.4]} 75. Kf4 {[%clk 0:00:08.1]} 75... Ng2+ {[%clk 0:00:08.7]} 76. Kg3
{[%clk 0:00:07.8]} 76... Ne3 {[%clk 0:00:08.3]} 77. Ra5+ {[%clk 0:00:08]} 77...
Kg6 {[%clk 0:00:08.6]} 78. Kf4 {[%clk 0:00:07.9]} 78... Ng2+ {[%clk 0:00:08.5]}
79. Kf3 {[%clk 0:00:06.7]} 79... Nh4+ {[%clk 0:00:08.3]} 80. Kg4 {[%clk
0:00:07.2]} 80... Ng2 {[%clk 0:00:08.7]} 81. h4 {[%clk 0:00:07.9]} 81... Ne3+
{[%clk 0:00:08.2]} 82. Kf4 {[%clk 0:00:07.6]} 82... Ng2+ {[%clk 0:00:07.8]} 83.
Kg3 {[%clk 0:00:08.1]} 83... Ne3 {[%clk 0:00:08]} 84. Ra6+ {[%clk 0:00:08]}
84... Kh5 {[%clk 0:00:07.6]} 85. Ra5+ {[%clk 0:00:06.6]} 85... Kg6 {[%clk
0:00:06.9]} 86. h5+ {[%clk 0:00:07]} 86... Kh6 {[%clk 0:00:06.8]} 87. Kh3 {[%clk
0:00:05.6]} 87... Kg7 {[%clk 0:00:03.7]} 88. Kh4 {[%clk 0:00:05.5]} 88... Kh7
{[%clk 0:00:04]} 89. Ra7+ {[%clk 0:00:04.4]} 89... Kh6 {[%clk 0:00:03.8]} 90.
Ra6+ {[%clk 0:00:05]} 90... Kg7 {[%clk 0:00:04.7]} 91. Kg5 {[%clk 0:00:05.6]}
91... Nd5 {[%clk 0:00:04.5]} 92. h6+ {[%clk 0:00:04.7]} 92... Kh7 {[%clk
0:00:05]} 93. Ra7+ {[%clk 0:00:05.2]} 93... Kh8 {[%clk 0:00:05.3]} 94. Kf5
{[%clk 0:00:04.7]} 94... Kg8 {[%clk 0:00:05]} 95. Rd7 {[%clk 0:00:04.1]} 95...
Nb6 {[%clk 0:00:03.9]} 96. Rb7 {[%clk 0:00:03.9]} 96... Nd5 {[%clk 0:00:04.2]}
97. Rd7 {[%clk 0:00:03.7]} 97... Nb6 {[%clk 0:00:03.3]} 98. Rd1 {[%clk
0:00:03.9]} 98... Kh7 {[%clk 0:00:03]} 99. Kg5 {[%clk 0:00:04.3]} 99... Nc4
{[%clk 0:00:01.9]} 100. Rd7+ {[%clk 0:00:04.5]} 100... Kg8 {[%clk 0:00:02.2]}
101. Kf6 {[%clk 0:00:04.2]} 101... Kh8 {[%clk 0:00:01.4]} 102. Rc7 {[%clk
0:00:02.1]} 102... Nd6 {[%clk 0:00:01.4]} 103. Kg6 {[%clk 0:00:02.2]} 103... Ne8
{[%clk 0:00:01.7]} 104. Re7 {[%clk 0:00:01.7]} 104... Kg8 {[%clk 0:00:02.4]}
105. Rxe8# {[%clk 0:00:02.3]} 1-0